Organisation Name,Organisation Code,Directorate/Service,Service Category Label,Service Code,Supplier Name,Supplier Reference,Payment Date,Transaction Number,Net payment,Purpose of Spend
North West Leicestershire District Council,31UH,Property Services,Property Commercial Lettings,PROPCL,RICS,A033386,07/06/2017,1344955,275,Operational Equipment
North West Leicestershire District Council,31UH,Street Management,Environment Transport,ENOT,Innovative Safety Systems Limited,A038664,28/06/2017,1345090,3239,Service Improvements
North West Leicestershire District Council,31UH,Street Management,Environment Transport,ENOT,Innovative Safety Systems Limited,A038664,28/06/2017,1345091,3239,Items To Be Leased
North West Leicestershire District Council,31UH,Street Management,Environment Transport,ENOT,Innovative Safety Systems Limited,A038664,28/06/2017,1345092,3239,Service Improvements
North West Leicestershire District Council,31UH,Housing,HRA Housing Management,HRAHM,Sturgis Snow & Astill LLP,A032635,07/06/2017,1345207,300,Legal & Professional Services
North West Leicestershire District Council,31UH,Housing,HRA Housing Management,HRAHM,Cirrus Communication Systems Ltd,A040630,07/06/2017,1345617,549.51,Alarm System Telephones
North West Leicestershire District Council,31UH,Street Management,Environment Transport,ENOT,Ford & Slater Group Ltd,A000625,07/06/2017,1345619,408.89,Vehicle related Costs
North West Leicestershire District Council,31UH,Street Management,Environment Transport,ENOT,Aebi Schmidt Uk Limited,A017053,07/06/2017,1345890,68947,Items To Be Leased
North West Leicestershire District Council,31UH,Street Management,Environment Transport,ENOT,Watling JCB Ltd,A032114,12/07/2017,1346002,711,Scheduled Servicing - Parts
North West Leicestershire District Council,31UH,Planning & Development,Environment Community Planning,ECP,Solon Security,A035272,14/06/2017,1346148,486,Security Equipment
North West Leicestershire District Council,31UH,Leisure & Culture,Cultural Services Arts & Events,CULTEV,Leicestershire County Council,A028430,07/06/2017,1346356,3015,Ashby Statutes
North West Leicestershire District Council,31UH,Finance,Exchequer Services,EXCH,Insight Uk,A021505,21/06/2017,1346433,5301.37,Computing
North West Leicestershire District Council,31UH,Leisure Centres,Hermitage Leisure Centre,HLC,Alpha Power Cleaners,A035656,07/06/2017,1346439,544.59,Operational Equipment
North West Leicestershire District Council,31UH,Property Services,Property Commercial Lettings,PROPCL,Pitney Bowes Finance Plc,A032630,07/06/2017,1346512,297.24,Equipment Operating Leases
North West Leicestershire District Council,31UH,Leisure Centres,Hermitage Leisure Centre,HLC,CSS Pools & Leisure,A034993,07/06/2017,1346514,536.96,Operational Equipment
North West Leicestershire District Council,31UH,Leisure Centres,Hood Park Leisure Centre,HPLC,LWC - Birmingham,A039915,07/06/2017,1346520,744.56,Bar Provisions
North West Leicestershire District Council,31UH,Leisure Centres,Hood Park Leisure Centre,HPLC,Stowlin Ltd,A001591,07/06/2017,1346521,307.5,Water Treatment
North West Leicestershire District Council,31UH,Leisure Centres,Hood Park Leisure Centre,HPLC,City Electrical Factors Limited,A035306,07/06/2017,1346526,498,General Repairs
North West Leicestershire District Council,31UH,Information Technology,ICT Services,ICT,Canon UK Ltd,A040459,07/06/2017,1346527,496.42,Equipment Operating Leases
North West Leicestershire District Council,31UH,Information Technology,ICT Services,ICT,Canon UK Ltd,A040459,07/06/2017,1346528,481.05,Equipment Operating Leases
North West Leicestershire District Council,31UH,Housing,HRA Housing Management,HRAHM,PPG Architectural Coatings Ltd,A041083,07/06/2017,1346529,692.15,Internal Decorations
North West Leicestershire District Council,31UH,Information Technology,ICT Services,ICT,GE Capital Equipment Finance Ltd,A017429,07/06/2017,1346532,399.08,Equipment Operating Leases
North West Leicestershire District Council,31UH,Housing,HRA Housing Management,HRAHM,Oneserve Ltd,A041321,07/06/2017,1346533,1625,Computing
North West Leicestershire District Council,31UH,Information Technology,ICT Services,ICT,Canon UK Ltd,A040459,07/06/2017,1346534,2856.4,Photo Copier - Copy Charges Rental
North West Leicestershire District Council,31UH,Chief Exec,Chief Executive,CHEX,Sharp Planning Plus Ltd,A041332,07/06/2017,1346535,2205.85,External Legal Fees & Advice
North West Leicestershire District Council,31UH,Housing,HRA Housing Management,HRAHM,AIM Mediation Ltd,A041734,07/06/2017,1346536,475,Legal & Professional Services
North West Leicestershire District Council,31UH,Street Management,Environment - Street Scene,ESS,E.on,A000528,07/06/2017,1346538,341.36,Electricity
North West Leicestershire District Council,31UH,Finance,Exchequer Services,EXCH,Comensura Limited,A036958,07/06/2017,1346541,25648.51,Agency Staff
North West Leicestershire District Council,31UH,Street Management,Environment - Street Scene,ESS,Zurich Assurance Ltd,A038748,07/06/2017,1346544,273.28,Service Charges
North West Leicestershire District Council,31UH,Street Management,Environment Transport,ENOT,Geesink Norba Limited,A017895,07/06/2017,1346548,281.6,Repairs - Parts
North West Leicestershire District Council,31UH,Leisure & Culture,Cultural Services TIC,CULTIC,Leicester Shire Promotions Ltd,A028765,07/06/2017,1346549,1600,Computing
North West Leicestershire District Council,31UH,Information Technology,ICT Services,ICT,ACS Systems (UK) Ltd T/a ACS Office Solutions,A043447,07/06/2017,1346550,495,Phone system & network equipment
North West Leicestershire District Council,31UH,Information Technology,ICT Services,ICT,ANS Group Plc,A034753,07/06/2017,1346554,4101.95,Admin Equipment - Maintenance
North West Leicestershire District Council,31UH,Information Technology,ICT Services,ICT,ANS Group Plc,A034753,07/06/2017,1346555,7130.65,Admin Equipment - Maintenance
North West Leicestershire District Council,31UH,Information Technology,ICT Services,ICT,ANS Group Plc,A034753,07/06/2017,1346556,10000,Admin Equipment - Maintenance
North West Leicestershire District Council,31UH,Information Technology,ICT Services,ICT,ANS Group Plc,A034753,07/06/2017,1346557,12210.48,Admin Equipment - Maintenance
North West Leicestershire District Council,31UH,Planning & Development,Environment - Development Control,EDC,"Alkiki Community Interest Company 	",A043035,07/06/2017,1346561,368.68,Training course
North West Leicestershire District Council,31UH,Planning & Development,Environment Planning Policy,EPP,Leicester City Council,A000935,07/06/2017,1346565,294.75,Legal & Professional Services
North West Leicestershire District Council,31UH,Property Services,Property Facilities Management,PROPFM,Valuation Office Agency,A034291,07/06/2017,1346566,807.5,Legal & Professional Services
North West Leicestershire District Council,31UH,Street Management,Environment Transport,ENOT,Johnston Sweepers Ltd,A039355,07/06/2017,1346570,49537,Items To Be Leased
North West Leicestershire District Council,31UH,Street Management,Environment Waste Management,ENOWM,UK Container Maintenance Ltd,A039044,07/06/2017,1346574,484.85,General Materials
North West Leicestershire District Council,31UH,Street Management,Environment - Street Scene,ESS,Bruel & Kjaer Uk Limited,A000253,21/06/2017,1346581,1405.76,Operational Equipment
North West Leicestershire District Council,31UH,Housing Repairs,HRA Housing Repairs & Maintenance,HRAHRM,County Safety Services Ltd  t/a CSS Worksafe,A044007,28/06/2017,1346582,5295.8,Operational Equipment - Purchases
North West Leicestershire District Council,31UH,Leisure Centres,Hermitage Bar & Catering,HLBC,Siemens Financial Services Ltd,A029510,07/06/2017,1346591,667.76,Equipment Operating Leases
North West Leicestershire District Council,31UH,Leisure Centres,Hermitage Bar & Catering,HLBC,LWC - Birmingham,A039915,07/06/2017,1346596,275.58,Bar Provisions
North West Leicestershire District Council,31UH,Planning & Development,Environment - Development Control,EDC,Nottingham City Council,A041558,07/06/2017,1346601,575,Training Expenses
North West Leicestershire District Council,31UH,Housing,HRA Performance & Business Support,HRAPBS,Kaplan Financial,A040435,07/06/2017,1346602,956.67,Training Expenses
North West Leicestershire District Council,31UH,Property Services,Property Facilities Management,PROPFM,Regarde Security Ltd,A013049,07/06/2017,1346604,541.2,Building Security
North West Leicestershire District Council,31UH,Chief Exec,Chief Executive,CHEX,CBRE Ltd,A041437,07/06/2017,1346609,3750,Consultants Fees
North West Leicestershire District Council,31UH,Housing Repairs,HRA Housing Repairs & Maintenance,HRAHRM,Timber-Link Fencing Ltd,A033297,07/06/2017,1346613,1250,External Materials
North West Leicestershire District Council,31UH,Housing Repairs,HRA Housing Repairs & Maintenance,HRAHRM,Timber-Link Fencing Ltd,A033297,07/06/2017,1346614,350,External Materials
North West Leicestershire District Council,31UH,Street Management,Environment - Street Scene,ESS,Metric Group Ltd (Sales),A028996,07/06/2017,1346615,252,Subscriptions
North West Leicestershire District Council,31UH,Housing Repairs,HRA Housing Repairs & Maintenance,HRAHRM,Timber-Link Fencing Ltd,A033297,07/06/2017,1346619,460,External Materials
North West Leicestershire District Council,31UH,Information Technology,ICT Services,ICT,Canon UK Ltd,A040459,28/06/2017,1346620,298.96,General Operational Equipment
North West Leicestershire District Council,31UH,Housing Repairs,HRA Housing Repairs & Maintenance,HRAHRM,Timber-Link Fencing Ltd,A033297,07/06/2017,1346621,520,External Materials
North West Leicestershire District Council,31UH,Housing Repairs,HRA Housing Repairs & Maintenance,HRAHRM,Timber-Link Fencing Ltd,A033297,07/06/2017,1346622,350,External Materials
North West Leicestershire District Council,31UH,Housing Repairs,HRA Housing Repairs & Maintenance,HRAHRM,Timber-Link Fencing Ltd,A033297,07/06/2017,1346625,315,External Materials
North West Leicestershire District Council,31UH,Legal & Democratic,Electoral & Land Charges,LDELC,Crestline Printers Limited,A000434,07/06/2017,1346626,756,External Printing Services
North West Leicestershire District Council,31UH,Leisure & Culture,Leisure & Cult Mangt,LCM,Ashby de la Zouch Town Council,A027892,07/06/2017,1346629,8418.3,Ashby Project Expenditure
North West Leicestershire District Council,31UH,Legal & Democratic,Legal Services,LDLS,Kings Chambers,A043775,07/06/2017,1346631,750,Insolvency Administration
North West Leicestershire District Council,31UH,Housing,HRA Housing Management,HRAHM,Redacted- Personal data,A044075,07/06/2017,1346634,1000,Under Occupancy Incentives
North West Leicestershire District Council,31UH,Finance,Financial Planning,FINPLA,Deloitte LLP,A044076,07/06/2017,1346635,24187.5,Consultants Fees
North West Leicestershire District Council,31UH,Housing,HRA Performance & Business Support,HRAPBS,Royal Mail Group,A036466,07/06/2017,1346643,893.49,Postages
North West Leicestershire District Council,31UH,Chief Exec,Chief Executive,CHEX,Jeremy Benn Associates Ltd (t/a JBA Consulting),A044010,07/06/2017,1346644,4728.3,Consultants Fees
North West Leicestershire District Council,31UH,Street Management,Environment Waste Management,ENOWM,Straight Plc,A024906,07/06/2017,1346645,8700,General Materials
North West Leicestershire District Council,31UH,Street Management,Environment Waste Management,ENOWM,Straight Plc,A024906,07/06/2017,1346646,4480,General Materials
North West Leicestershire District Council,31UH,Housing,HRA Performance & Business Support,HRAPBS,Oneserve Ltd,A041321,07/06/2017,1346647,1625,Computing
North West Leicestershire District Council,31UH,Housing,HRA Performance & Business Support,HRAPBS,Michael Page International Recruitment Ltd,A041893,07/06/2017,1346648,2017.75,Agency Staff
North West Leicestershire District Council,31UH,Leisure Centres,Hermitage Bar & Catering,HLBC,Snackline Direct Ltd,A042489,07/06/2017,1346651,991.99,Catering Provisions
North West Leicestershire District Council,31UH,Leisure Centres,Hood Park Bar and Catering,HPBC,Snackline Direct Ltd,A042489,07/06/2017,1346654,1224.43,Catering Provisions
North West Leicestershire District Council,31UH,Planning & Development,Environment Community Planning,ECP,The Professional Promotion Company Ltd,A043727,07/06/2017,1346657,2065,Event Expenditure
North West Leicestershire District Council,31UH,Housing,HRA Performance & Business Support,HRAPBS,BMG Research Ltd,A044013,28/06/2017,1346661,2565,Annual Report To Tenants
North West Leicestershire District Council,31UH,Chief Exec,Chief Executive,CHEX,Koda Consulting,A043827,07/06/2017,1346662,2703,Consultants Fees
North West Leicestershire District Council,31UH,Leisure Centres,Hermitage Leisure Centre,HLC,Admiral Cleaning Supplies Ltd,A040930,14/06/2017,1346663,1043.66,Consumable Materials
North West Leicestershire District Council,31UH,Leisure & Culture,Cultural Services Arts & Events,CULTEV,Scott Jordan Entertainment,A042847,14/06/2017,1346675,875,Event Expenditure
North West Leicestershire District Council,31UH,Street Management,Environment - Street Scene,ESS,Derby City Council,A042168,07/06/2017,1346676,325,Training Course
North West Leicestershire District Council,31UH,Street Management,Environment Parks,ENOP,Admiral Cleaning Supplies Ltd,A040930,07/06/2017,1346678,291.46,Operational Equipment - Purchases
North West Leicestershire District Council,31UH,Street Management,Environment Parks,ENOP,Tudor UK Ltd  (trading as Tudor Environmental),A043777,07/06/2017,1346679,464.72,General Repairs
North West Leicestershire District Council,31UH,Street Management,Environment Transport,ENOT,Groundsman Tools & Supplies,A030744,14/06/2017,1346682,942,Operational Equipment
North West Leicestershire District Council,31UH,Housing,HRA Housing Management,HRAHM,St Marys TARA,A042249,07/06/2017,1346692,878.63,Grants
North West Leicestershire District Council,31UH,Housing Repairs,HRA Housing Repairs & Maintenance,HRAHRM,G Purchase Construction Ltd,A032830,07/06/2017,1346694,84753.54,Housing repairs
North West Leicestershire District Council,31UH,Housing,HRA Performance & Business Support,HRAPBS,Redacted- Personal data,A000133,06/06/2017,1346695,423.5,Compensation
North West Leicestershire District Council,31UH,Housing Repairs,HRA Housing Repairs & Maintenance,HRAHRM,National Grid Gas Plc,A032629,06/06/2017,1346697,527.62,Utlilities-connection services
North West Leicestershire District Council,31UH,Finance,Financial Planning,FINPLA,Public Works Loan Board,A001340,06/06/2017,1346699,38062.5,P.W.L.B. Loans
North West Leicestershire District Council,31UH,Finance,Financial Planning,FINPLA,Leicestershire County Council,A000950,06/06/2017,1346701,2061713,County Precept
North West Leicestershire District Council,31UH,Finance,Financial Planning,FINPLA,Department for Communities & Local Government,A028518,06/06/2017,1346703,2551628,Subsidy Receipts & Repayments
North West Leicestershire District Council,31UH,Finance,Financial Planning,FINPLA,National Counties Building Society,A042331,06/06/2017,1346704,1000000,Policy Lending
North West Leicestershire District Council,31UH,Finance,Financial Planning,FINPLA,Nationwide Building Society,A028778,06/06/2017,1346706,1500000,Policy Lending
North West Leicestershire District Council,31UH,Legal & Democratic,Legal Services,LDLS,Venn Group Limited,A028530,07/06/2017,1346707,985.95,Agency Staff
North West Leicestershire District Council,31UH,Finance,Financial Planning,FINPLA,LEEDS CITY COUNCIL,A034202,06/06/2017,1346708,2000000,Policy Lending
North West Leicestershire District Council,31UH,Housing,HRA Performance & Business Support,HRAPBS,Michael Page International Recruitment Ltd,A041893,07/06/2017,1346709,1614.2,Agency Staff
North West Leicestershire District Council,31UH,Finance,Exchequer Services,EXCH,H M Land Registry,A000713,06/06/2017,1346710,511,Land Registry Search Fees
North West Leicestershire District Council,31UH,Communications,Corporate - Customer Services,CS,Neopost Finance Limited,A031590,07/06/2017,1346711,2552.28,Equipment Operating Leases
North West Leicestershire District Council,31UH,Finance,Exchequer Services,EXCH,Total Gas & Power,A033385,06/06/2017,1346718,10530.61,Electricity
North West Leicestershire District Council,31UH,Finance,Exchequer Services,EXCH,Vodafone Limited,A001861,06/06/2017,1346720,2836.78,Mobile Telephones
North West Leicestershire District Council,31UH,Street Management,Environment Transport,ENOT,Mertrux Ltd,A035291,07/06/2017,1346754,-299.39,Operational Equipment - Purchases
North West Leicestershire District Council,31UH,Street Management,Environment Transport,ENOT,Mertrux Ltd,A035291,07/06/2017,1346755,299.39,Operational Equipment - Purchases
North West Leicestershire District Council,31UH,Housing,HRA Housing Management,HRAHM,Kegworth TARA,A042631,07/06/2017,1346756,600,Grants
North West Leicestershire District Council,31UH,Street Management,Environment - Street Scene,ESS,Future Surveys Limited,A044012,07/06/2017,1346760,1200,Legal & Professional Services
North West Leicestershire District Council,31UH,Housing,HRA Performance & Business Support,HRAPBS,Arena Partnership Ltd,A042656,07/06/2017,1346761,3200,Computing
North West Leicestershire District Council,31UH,Housing,HRA Performance & Business Support,HRAPBS,TPAS Limited,A028863,07/06/2017,1346762,396,Training Expenses
North West Leicestershire District Council,31UH,Housing Repairs,HRA Housing Repairs & Maintenance,HRAHRM,H20 Utilities Ltd,A043865,07/06/2017,1346764,1500,Associated Drainage Services
North West Leicestershire District Council,31UH,Housing Repairs,HRA Housing Repairs & Maintenance,HRAHRM,H20 Utilities Ltd,A043865,07/06/2017,1346766,675,Associated Drainage Services
North West Leicestershire District Council,31UH,Housing Repairs,HRA Housing Repairs & Maintenance,HRAHRM,H20 Utilities Ltd,A043865,07/06/2017,1346767,750,Associated Drainage Services
North West Leicestershire District Council,31UH,Housing Repairs,HRA Housing Repairs & Maintenance,HRAHRM,H20 Utilities Ltd,A043865,07/06/2017,1346768,600,Associated Drainage Services
North West Leicestershire District Council,31UH,Housing Repairs,HRA Housing Repairs & Maintenance,HRAHRM,Ksa Consulting Engineers Ltd,A008757,07/06/2017,1346769,450,Legal & Professional Services
North West Leicestershire District Council,31UH,Housing Repairs,HRA Housing Repairs & Maintenance,HRAHRM,Ksa Consulting Engineers Ltd,A008757,07/06/2017,1346770,500,Legal & Professional Services
North West Leicestershire District Council,31UH,Housing Repairs,HRA Housing Repairs & Maintenance,HRAHRM,Ksa Consulting Engineers Ltd,A008757,07/06/2017,1346771,500,Legal & Professional Services
North West Leicestershire District Council,31UH,Housing Repairs,HRA Housing Repairs & Maintenance,HRAHRM,Ksa Consulting Engineers Ltd,A008757,07/06/2017,1346772,500,Legal & Professional Services
North West Leicestershire District Council,31UH,Housing Repairs,HRA Housing Repairs & Maintenance,HRAHRM,Ksa Consulting Engineers Ltd,A008757,07/06/2017,1346773,500,Legal & Professional Services
North West Leicestershire District Council,31UH,Housing Repairs,HRA Housing Repairs & Maintenance,HRAHRM,Ksa Consulting Engineers Ltd,A008757,07/06/2017,1346774,500,Legal & Professional Services
North West Leicestershire District Council,31UH,Housing Repairs,HRA Housing Repairs & Maintenance,HRAHRM,Ksa Consulting Engineers Ltd,A008757,07/06/2017,1346776,500,Legal & Professional Services
North West Leicestershire District Council,31UH,Housing Repairs,HRA Housing Repairs & Maintenance,HRAHRM,TECSERV UK LIMITED,A028261,07/06/2017,1346777,608.5,Door Entry Systems
North West Leicestershire District Council,31UH,Housing Repairs,HRA Housing Repairs & Maintenance,HRAHRM,TECSERV UK LIMITED,A028261,07/06/2017,1346778,600,Door Entry Systems
North West Leicestershire District Council,31UH,Housing Repairs,HRA Housing Repairs & Maintenance,HRAHRM,TECSERV UK LIMITED,A028261,07/06/2017,1346779,953,Door Entry Systems
North West Leicestershire District Council,31UH,Housing Repairs,HRA Housing Repairs & Maintenance,HRAHRM,TECSERV UK LIMITED,A028261,07/06/2017,1346780,469.64,Door Entry Systems
North West Leicestershire District Council,31UH,Housing Repairs,HRA Housing Repairs & Maintenance,HRAHRM,TECSERV UK LIMITED,A028261,07/06/2017,1346781,714.5,Door Entry Systems
North West Leicestershire District Council,31UH,Housing Repairs,HRA Housing Repairs & Maintenance,HRAHRM,TECSERV UK LIMITED,A028261,07/06/2017,1346783,683,Door Entry Systems
North West Leicestershire District Council,31UH,Housing Repairs,HRA Housing Repairs & Maintenance,HRAHRM,TECSERV UK LIMITED,A028261,07/06/2017,1346784,286.65,Door Entry Systems
North West Leicestershire District Council,31UH,Environmental Health,Environmental Health & Licensing,EEHL,Public Health England,A032001,07/06/2017,1346791,575.12,Private & Pool Water Sampling
North West Leicestershire District Council,31UH,Planning & Development,Environment Planning Policy,EPP,GL Hearn,A041191,14/06/2017,1346814,3562.5,External Legal Fees & Advice
North West Leicestershire District Council,31UH,Planning & Development,Environment - Development Control,EDC,Heartwood Conferencing Ltd,A041744,14/06/2017,1346818,2381.9,External Legal Fees & Advice
North West Leicestershire District Council,31UH,Planning & Development,Environment - Development Control,EDC,Euro RSCG People T/A Havas People Ltd,A001395,14/06/2017,1346822,531.72,Advertising
North West Leicestershire District Council,31UH,Street Management,Environment Transport,ENOT,Ford & Slater Group Ltd,A000625,14/06/2017,1346823,627.38,Vehicle related Costs
North West Leicestershire District Council,31UH,Street Management,Environment Transport,ENOT,Ford & Slater Group Ltd,A000625,14/06/2017,1346824,567.5,Vehicle related Costs
North West Leicestershire District Council,31UH,Street Management,Environment Transport,ENOT,Alpha Power Cleaners,A035656,14/06/2017,1346827,286.44,Operational Equipment - Rep & Maint
North West Leicestershire District Council,31UH,Planning & Development,Environment Community Planning,ECP,Broadland Guarding Services Ltd,A042635,14/06/2017,1346830,4137.89,Agency Staff
North West Leicestershire District Council,31UH,Street Management,Environment Parks,ENOP,R Pochin Limited,A001313,14/06/2017,1346833,483,Operational Equipment - Purchases
North West Leicestershire District Council,31UH,Housing Repairs,HRA Housing Repairs & Maintenance,HRAHRM,Sure Maintenance Ltd,A040460,14/06/2017,1346835,750,Plumbing & Heating
North West Leicestershire District Council,31UH,Housing Repairs,HRA Housing Repairs & Maintenance,HRAHRM,Sure Maintenance Ltd,A040460,14/06/2017,1346836,5760,Plumbing & Heating
North West Leicestershire District Council,31UH,Housing Repairs,HRA Housing Repairs & Maintenance,HRAHRM,Lovell Partnerships Ltd,A039973,14/06/2017,1346837,147495.29,Decent Homes
North West Leicestershire District Council,31UH,Legal & Democratic,Legal Services,LDLS,Mr Conrad Rumney,A030121,14/06/2017,1346838,1750,External Legal Fees & Advice
North West Leicestershire District Council,31UH,Legal & Democratic,Legal Services,LDLS,Mr Timothy Leader,A041711,14/06/2017,1346839,500,External Legal Fees & Advice
North West Leicestershire District Council,31UH,Planning & Development,Environment - Development Control,EDC,Euro RSCG People T/A Havas People Ltd,A001395,14/06/2017,1346840,865.29,Advertising
North West Leicestershire District Council,31UH,Planning & Development,Environment - Development Control,EDC,Euro RSCG People T/A Havas People Ltd,A001395,14/06/2017,1346841,1481.87,Advertising
North West Leicestershire District Council,31UH,Planning & Development,Environment - Development Control,EDC,Euro RSCG People T/A Havas People Ltd,A001395,14/06/2017,1346842,616.94,Advertising
North West Leicestershire District Council,31UH,Information Technology,ICT Services,ICT,Virgin Media Business,A035373,14/06/2017,1346848,313.53,Computing
North West Leicestershire District Council,31UH,Corporate Director,Human Resources,HR,Wider Plan Ltd,A043948,14/06/2017,1346849,6000,Staff Benefit Scheme
North West Leicestershire District Council,31UH,Street Management,Environment Transport,ENOT,S & B Tyres Limited,A034071,14/06/2017,1346852,255,Transport Costs - Tyres
North West Leicestershire District Council,31UH,Street Management,Environment Transport,ENOT,Trade Price Windscreens Ltd,A040486,14/06/2017,1346859,315,Non Insurance Damage
North West Leicestershire District Council,31UH,Leisure & Culture,Sport & Physical Activity,SPA,Later Life Training Ltd,A042254,14/06/2017,1346870,1250,FAME classes
North West Leicestershire District Council,31UH,Legal & Democratic,Legal Services,LDLS,Mr Timothy Leader,A041711,14/06/2017,1346875,350,External Legal Fees & Advice
North West Leicestershire District Council,31UH,Information Technology,ICT Services,ICT,ACS Systems (UK) Ltd T/a ACS Office Solutions,A043447,14/06/2017,1346877,309.5,Data Transfer
North West Leicestershire District Council,31UH,Finance,Exchequer Services,EXCH,Comensura Limited,A036958,14/06/2017,1346879,21475.49,Agency Staff
North West Leicestershire District Council,31UH,Finance,Financial Planning,FINPLA,Leicestershire County Council,A000950,14/06/2017,1346880,6219.44,PCN LEVY
North West Leicestershire District Council,31UH,Housing Repairs,HRA Housing Repairs & Maintenance,HRAHRM,Leicestershire County Council,A000951,14/06/2017,1346882,11096.22,Derv
North West Leicestershire District Council,31UH,Housing Repairs,HRA Housing Repairs & Maintenance,HRAHRM,Leicestershire County Council,A000951,14/06/2017,1346883,9626.69,Derv
North West Leicestershire District Council,31UH,Housing Repairs,HRA Housing Repairs & Maintenance,HRAHRM,Leicestershire County Council,A000951,14/06/2017,1346884,10390.63,Derv
North West Leicestershire District Council,31UH,Housing Repairs,HRA Housing Repairs & Maintenance,HRAHRM,National Grid Gas Plc,A032629,14/06/2017,1346885,400,Utlilities-connection services
North West Leicestershire District Council,31UH,Housing Repairs,HRA Housing Repairs & Maintenance,HRAHRM,National Grid Gas Plc,A032629,14/06/2017,1346886,400,Utlilities-connection services
North West Leicestershire District Council,31UH,Housing Repairs,HRA Housing Repairs & Maintenance,HRAHRM,National Grid Gas Plc,A032629,14/06/2017,1346887,400,Utlilities-connection services
North West Leicestershire District Council,31UH,Corporate Director,Human Resources,HR,Wider Plan Ltd,A043948,14/06/2017,1346888,5787,Staff Benefit Scheme
North West Leicestershire District Council,31UH,Housing,HRA Housing Management,HRAHM,E.on,A000528,14/06/2017,1346896,481.32,Electricity
North West Leicestershire District Council,31UH,Legal & Democratic,Legal Services,LDLS,Browne Jacobson LLP,A000251,14/06/2017,1346898,8481,Contract Payments (Dws) Ext
North West Leicestershire District Council,31UH,Legal & Democratic,Legal Services,LDLS,Mr Timothy Leader,A041711,14/06/2017,1346899,8500,External Legal Fees & Advice
North West Leicestershire District Council,31UH,Housing Repairs,HRA Housing Repairs & Maintenance,HRAHRM,Orbis Property Protection Ltd,A028149,14/06/2017,1346900,285,Void Property Clearance Services
North West Leicestershire District Council,31UH,Housing Repairs,HRA Housing Repairs & Maintenance,HRAHRM,Orbis Property Protection Ltd,A028149,14/06/2017,1346904,280,Void Property Clearance Services
North West Leicestershire District Council,31UH,Housing Repairs,HRA Housing Repairs & Maintenance,HRAHRM,Orbis Property Protection Ltd,A028149,14/06/2017,1346905,280,Void Property Clearance Services
North West Leicestershire District Council,31UH,Housing Repairs,HRA Housing Repairs & Maintenance,HRAHRM,Orbis Property Protection Ltd,A028149,14/06/2017,1346906,299,Void Property Clearance Services
North West Leicestershire District Council,31UH,Housing Repairs,HRA Housing Repairs & Maintenance,HRAHRM,Orbis Property Protection Ltd,A028149,14/06/2017,1346907,460,Void Property Clearance Services
North West Leicestershire District Council,31UH,Property Services,Property Facilities Management,PROPFM,John Merison BMC Ltd,A001092,14/06/2017,1346912,462,Asset Protection
North West Leicestershire District Council,31UH,Chief Exec,Chief Executive,CHEX,Sable Leigh Consultancy Ltd T/A SLC Rail,A042727,14/06/2017,1346914,1384.2,External Legal Fees & Advice
North West Leicestershire District Council,31UH,Leisure Centres,Hermitage Bar & Catering,HLBC,Snackline Direct Ltd,A042489,14/06/2017,1346918,418.4,Catering Provisions
North West Leicestershire District Council,31UH,Leisure Centres,Hermitage Leisure Centre,HLC,Measham Leisure Centre,A027454,14/06/2017,1346923,2370.75,Measham LC Lifestyle DD
North West Leicestershire District Council,31UH,Leisure Centres,Hermitage Leisure Centre,HLC,MIW Office Solutions Ltd,A030420,14/06/2017,1346925,303.96,Service Contracts
North West Leicestershire District Council,31UH,Environmental Health,Environmental Health & Licensing,EEHL,NewAuto Ltd,A034761,14/06/2017,1346933,1043.9,Hackney Carriage - Plates & Badges
North West Leicestershire District Council,31UH,Street Management,Environment Parks,ENOP,Aggregate Industries Uk Ltd,A000940,14/06/2017,1346934,363.45,External Materials
North West Leicestershire District Council,31UH,Street Management,Environment Transport,ENOT,R Massey & Son (Woodville) Ltd,A033258,14/06/2017,1346939,298.72,Repairs - Parts
North West Leicestershire District Council,31UH,Street Management,Environment Parks,ENOP,New Build Landscaping & Home,A043278,14/06/2017,1346942,400,External Contractor Payments
North West Leicestershire District Council,31UH,Street Management,Environment Parks,ENOP,New Build Landscaping & Home,A043278,14/06/2017,1346943,1550,External Contractor Payments
North West Leicestershire District Council,31UH,Street Management,Environment Parks,ENOP,New Build Landscaping & Home,A043278,14/06/2017,1346944,900,External Contractor Payments
North West Leicestershire District Council,31UH,Street Management,Environment Parks,ENOP,New Build Landscaping & Home,A043278,14/06/2017,1346945,1450,External Contractor Payments
North West Leicestershire District Council,31UH,Street Management,Environment Parks,ENOP,Euromec Contracts,A043934,14/06/2017,1346946,14605,Contract Payments (Other) Ext
North West Leicestershire District Council,31UH,Street Management,Environment - Street Scene,ESS,EPT SERVICES,A039764,21/06/2017,1346947,330,Operational Equipment
North West Leicestershire District Council,31UH,Finance,Exchequer Services,EXCH,HM Revenues & Customs,A038465,14/06/2017,1346948,665.16,Payment To Inland Revenue
North West Leicestershire District Council,31UH,Street Management,Environment Transport,ENOT,Mertrux Ltd,A035291,21/06/2017,1346950,781.56,Repairs - Parts
North West Leicestershire District Council,31UH,Street Management,Environment - Street Scene,ESS,Metric Group Ltd (Sales),A028996,21/06/2017,1346951,645.1,Operational Equipment
North West Leicestershire District Council,31UH,Housing Repairs,HRA Housing Repairs & Maintenance,HRAHRM,Kier Services Maintenance East Ltd,A039980,14/06/2017,1346956,150001.65,Decent Homes
North West Leicestershire District Council,31UH,Housing Repairs,HRA Housing Repairs & Maintenance,HRAHRM,Sure Maintenance Ltd,A040460,14/06/2017,1346957,11765.28,Plumbing & Heating
North West Leicestershire District Council,31UH,Leisure & Culture,Leisure & Cult Mangt,LCM,Living Without Abuse,A032786,14/06/2017,1346958,2500,Event Expenditure
North West Leicestershire District Council,31UH,Street Management,Environment Transport,ENOT,Anderson Commercials Limited,A033469,14/06/2017,1346971,284,Vehicle Servicing and MOTs
North West Leicestershire District Council,31UH,Street Management,Environment Transport,ENOT,Regarde Security Ltd,A013049,14/06/2017,1346973,270.6,Building Security
North West Leicestershire District Council,31UH,Leisure Centres,Hood Park Leisure Centre,HPLC,Dura-Sport (Leisure Care) Ltd,A041815,21/06/2017,1346976,1310,General Repairs
North West Leicestershire District Council,31UH,Property Services,Property Facilities Management,PROPFM,Spectra Security Limited,A002190,14/06/2017,1346983,1600,Door Entry Systems
North West Leicestershire District Council,31UH,Street Management,Environment Transport,ENOT,Berendsen Uk Ltd,A001600,14/06/2017,1346984,277.46,Protective Clothing
North West Leicestershire District Council,31UH,Property Services,Property Facilities Management,PROPFM,TECSERV UK LIMITED,A028261,14/06/2017,1346985,432.52,General Repairs
North West Leicestershire District Council,31UH,Property Services,Property Commercial Lettings,PROPCL,Fire Proof Ltd,A039911,14/06/2017,1346986,2347.54,General Repairs
North West Leicestershire District Council,31UH,Property Services,Property Commercial Lettings,PROPCL,Fire Proof Ltd,A039911,14/06/2017,1346987,1116.64,General Repairs
North West Leicestershire District Council,31UH,Housing Repairs,HRA Housing Repairs & Maintenance,HRAHRM,Cresswell Property Surveys,A022373,14/06/2017,1346989,1655,Legal & Professional Services
North West Leicestershire District Council,31UH,Leisure & Culture,Cultural Services TIC,CULTIC,Ashby Arts Festival,A044071,14/06/2017,1346991,475,Theatre Tickets
North West Leicestershire District Council,31UH,Leisure & Culture,Cultural Services TIC,CULTIC,Ashby Arts Festival,A044071,14/06/2017,1346992,344,Theatre Tickets
North West Leicestershire District Council,31UH,Leisure & Culture,Cultural Services TIC,CULTIC,Ashby DLZ Festival Ltd,A039327,14/06/2017,1347000,1057.05,Theatre Tickets
North West Leicestershire District Council,31UH,Legal & Democratic,Legal Services,LDLS,Browne Jacobson LLP,A000251,14/06/2017,1347001,1232.8,Legal & Professional Services
North West Leicestershire District Council,31UH,Housing,HRA Housing Management,HRAHM,Redacted- Personal data,A044089,14/06/2017,1347002,1000,Under Occupancy Incentives
North West Leicestershire District Council,31UH,Legal & Democratic,Legal Services,LDLS,Venn Group Limited,A028530,14/06/2017,1347004,1083.6,Agency Staff
North West Leicestershire District Council,31UH,Property Services,Property Facilities Management,PROPFM,TECSERV UK LIMITED,A028261,14/06/2017,1347009,3060.52,Fire Precaution Appliances
North West Leicestershire District Council,31UH,Property Services,Property Commercial Lettings,PROPCL,British Telecommunications Plc,A000233,14/06/2017,1347010,621.23,Telephones
North West Leicestershire District Council,31UH,Information Technology,ICT Services,ICT,Virgin Media Business,A008908,14/06/2017,1347014,3154.18,Admin Equipment - Maintenance
North West Leicestershire District Council,31UH,Street Management,Environment Transport,ENOT,Kingsway Tyres (Stamford) Ltd,A004457,14/06/2017,1347015,830,Transport Costs - Tyres
North West Leicestershire District Council,31UH,Housing Repairs,HRA Housing Repairs & Maintenance,HRAHRM,Aspect Contracts Limited,A041868,14/06/2017,1347019,411,Contract Payments (Dws) Ext
North West Leicestershire District Council,31UH,Housing Repairs,HRA Housing Repairs & Maintenance,HRAHRM,Aspect Contracts Limited,A041868,14/06/2017,1347020,1010.83,Contract Payments (Dws) Ext
North West Leicestershire District Council,31UH,Housing Repairs,HRA Housing Repairs & Maintenance,HRAHRM,National Grid Gas Plc,A032629,14/06/2017,1347034,519.75,Gas related Services
North West Leicestershire District Council,31UH,Street Management,Environment Transport,ENOT,A M Welding Distribution,A034154,28/06/2017,1347064,489.06,Operational Equipment
North West Leicestershire District Council,31UH,Street Management,Environment Transport,ENOT,Johnston Sweepers Ltd,A039355,14/06/2017,1347065,524.06,Non Scheduled Maintenance - Parts
North West Leicestershire District Council,31UH,Information Technology,ICT Services,ICT,Leicestershire County Council,A000950,14/06/2017,1347066,6056.77,Admin Equipment - Maintenance
North West Leicestershire District Council,31UH,Chief Exec,Chief Executive,CHEX,Nottingham City Council,A041558,21/06/2017,1347070,4995,Subscriptions
North West Leicestershire District Council,31UH,Information Technology,ICT Services,ICT,Multidata (Europe) Ltd,A032931,21/06/2017,1347071,1284,Broadband
North West Leicestershire District Council,31UH,Property Services,Property Facilities Management,PROPFM,Wm Saunders Partnership LLP,A035772,14/06/2017,1347073,600,Asset Protection
North West Leicestershire District Council,31UH,Leisure & Culture,Cultural Services Arts & Events,CULTEV,Crocker Brothers Limited,A038388,14/06/2017,1347082,892.6,Event Expenditure
North West Leicestershire District Council,31UH,Leisure & Culture,Cultural Services Arts & Events,CULTEV,Nova Music,A044059,14/06/2017,1347083,575,Event Expenditure
North West Leicestershire District Council,31UH,Leisure & Culture,Cultural Services Arts & Events,CULTEV,Midland Entertainment,A042677,14/06/2017,1347084,1000,Event Expenditure
North West Leicestershire District Council,31UH,Leisure & Culture,Cultural Services Arts & Events,CULTEV,Helter Skelter Arts Ltd,A043059,14/06/2017,1347085,1200,Event Expenditure
North West Leicestershire District Council,31UH,Leisure Centres,Hood Park Bar and Catering,HPBC,LWC - Birmingham,A039915,14/06/2017,1347093,1479.1,Bar Provisions
North West Leicestershire District Council,31UH,Housing,HRA Performance & Business Support,HRAPBS,Michael Page International Recruitment Ltd,A041893,14/06/2017,1347094,807.1,Agency Staff
North West Leicestershire District Council,31UH,Planning & Development,Environment Community Planning,ECP,Baydale Control Systems Ltd,A042565,14/06/2017,1347096,350.75,Maintenance Contract
North West Leicestershire District Council,31UH,Planning & Development,Environment Community Planning,ECP,Baydale Control Systems Ltd,A042565,14/06/2017,1347097,284,Maintenance Contract
North West Leicestershire District Council,31UH,Housing,HRA Housing Management,HRAHM,PPG Architectural Coatings Ltd,A000876,14/06/2017,1347098,2149.96,Internal Decorations
North West Leicestershire District Council,31UH,Information Technology,ICT Services,ICT,Canon UK Ltd,A040459,14/06/2017,1347100,268.81,Equipment Operating Leases
North West Leicestershire District Council,31UH,Information Technology,ICT Services,ICT,Canon UK Ltd,A040459,14/06/2017,1347101,1474.38,Equipment Operating Leases
North West Leicestershire District Council,31UH,Information Technology,ICT Services,ICT,Canon UK Ltd,A040459,14/06/2017,1347102,268.81,Equipment Operating Leases
North West Leicestershire District Council,31UH,Information Technology,ICT Services,ICT,Canon UK Ltd,A040459,14/06/2017,1347103,268.81,Equipment Operating Leases
North West Leicestershire District Council,31UH,Housing,HRA Housing Management,HRAHM,Leicestershire County Council,A000950,14/06/2017,1347108,6227.08,Contract Cleaning
North West Leicestershire District Council,31UH,Housing,HRA Housing Management,HRAHM,Severn Trent Water Limited,A001468,14/06/2017,1347109,8109.68,Water Charges (Metered)
North West Leicestershire District Council,31UH,Street Management,Environment Parks,ENOP,Buxton's Ltd,A029426,14/06/2017,1347120,505,Protective Clothing
North West Leicestershire District Council,31UH,Housing,HRA Performance & Business Support,HRAPBS,Agar Nook Community Association,A027517,14/06/2017,1347126,250,Grants
North West Leicestershire District Council,31UH,Housing,HRA Housing Management,HRAHM,PPG Architectural Coatings Ltd,A000876,14/06/2017,1347129,2579.95,Internal Decorations
North West Leicestershire District Council,31UH,Legal & Democratic,Civic Expenses,LDCE,Thomas Fattorini Limited,A032044,14/06/2017,1347130,324.47,Other Miscellaneous Expenses
North West Leicestershire District Council,31UH,Leisure Centres,Castle Donington Community College,CDCC,Elliott Group Limited,A005413,14/06/2017,1347133,522.58,Secure Storage 
North West Leicestershire District Council,31UH,Street Management,Environment Transport,ENOT,Henton & Chattell Limited,A000757,21/06/2017,1347137,260.37,Repairs - Parts
North West Leicestershire District Council,31UH,Street Management,Environment Waste Management,ENOWM,ESE World Limited,A001253,21/06/2017,1347143,1063.2,General Materials
North West Leicestershire District Council,31UH,Leisure & Culture,Cultural Services Arts & Events,CULTEV,Fun Faces,A036237,21/06/2017,1347145,300,Event Expenditure
North West Leicestershire District Council,31UH,Street Management,Environment Transport,ENOT,Selby's Garage (Woodhouse) Ltd,A044011,21/06/2017,1347150,343.91,Hire Of Operational Equipment
North West Leicestershire District Council,31UH,Information Technology,ICT Services,ICT,Freedom Communications (UK) Ltd,A032826,21/06/2017,1347153,1543.32,Admin Equipment - Maintenance
North West Leicestershire District Council,31UH,Street Management,Environment Transport,ENOT,Redacted- Personal data,A044101,21/06/2017,1347163,1230,Non Insurance Damage
North West Leicestershire District Council,31UH,Information Technology,ICT Services,ICT,EE Ltd (Equipment),A043413,21/06/2017,1347165,2990,Data Transfer
North West Leicestershire District Council,31UH,Information Technology,ICT Services,ICT,EE Ltd (Equipment),A043413,21/06/2017,1347166,-1720,Data Transfer
North West Leicestershire District Council,31UH,Street Management,Environment - Street Scene,ESS,SLH Planning Solutions Limited,A044102,21/06/2017,1347168,512.4,Agency Staff
North West Leicestershire District Council,31UH,Chief Exec,Chief Executive,CHEX,Local Government Association,A002189,21/06/2017,1347169,545,Training Expenses
North West Leicestershire District Council,31UH,Street Management,Environment Transport,ENOT,Johnston Sweepers Ltd,A039355,28/06/2017,1347171,1987,Repairs - Parts
North West Leicestershire District Council,31UH,Finance,Revenues,REVS,Harborough District Council,A008631,28/06/2017,1347172,6808,Agency Staff
North West Leicestershire District Council,31UH,Leisure & Culture,Cultural Services Arts & Events,CULTEV,Redacted- Personal data,A044106,21/06/2017,1347183,500,Grants
North West Leicestershire District Council,31UH,Housing Repairs,HRA Housing Repairs & Maintenance,HRAHRM,Sure Maintenance Ltd,A040460,21/06/2017,1347184,19067.76,Plumbing & Heating
North West Leicestershire District Council,31UH,Street Management,Environment Transport,ENOT,Danline International Ltd,A029265,21/06/2017,1347191,1937.04,Repairs - Parts
North West Leicestershire District Council,31UH,Legal & Democratic,Legal Services,LDLS,Marrons Shakespeares,A041538,21/06/2017,1347192,1347.5,External Legal Fees & Advice
North West Leicestershire District Council,31UH,Leisure & Culture,Cultural Services Arts & Events,CULTEV,THE OCKBROOK BIG BAND,A030609,21/06/2017,1347193,585,Event Expenditure
North West Leicestershire District Council,31UH,Information Technology,ICT Services,ICT,Cuttlefish Multimedia Ltd,A032102,21/06/2017,1347195,2450,Website Maintenance
North West Leicestershire District Council,31UH,Housing,HRA Housing Management,HRAHM,B & R Wright,A044047,21/06/2017,1347196,2350,Legal & Professional Services
North West Leicestershire District Council,31UH,Street Management,Environment Transport,ENOT,Certas Energy Uk Ltd,A043448,21/06/2017,1347197,16369.2,Fuel
North West Leicestershire District Council,31UH,Street Management,Environment Transport,ENOT,Certas Energy Uk Ltd,A043448,21/06/2017,1347198,448.2,Fuel
North West Leicestershire District Council,31UH,Street Management,Environment - Street Scene,ESS,SLH Planning Solutions Limited,A044102,21/06/2017,1347204,1107,Agency Staff
North West Leicestershire District Council,31UH,Economic Development,Business Focus Group,BFG,InPhase Ltd,A044108,21/06/2017,1347205,30000,Contract Payments (Other) Ext
North West Leicestershire District Council,31UH,Street Management,Environment - Street Scene,ESS,Water Plus Limited,A044043,21/06/2017,1347206,990.91,Sewerage & Environmental
North West Leicestershire District Council,31UH,Finance,Exchequer Services,EXCH,Insight Uk,A021505,21/06/2017,1347216,492.63,Contract Payments (Other) Ext
North West Leicestershire District Council,31UH,Legal & Democratic,Legal Services,LDLS,Brodies LLP,A044107,21/06/2017,1347217,981,Legal & Professional Services
North West Leicestershire District Council,31UH,Housing Repairs,HRA Housing Repairs & Maintenance,HRAHRM,Karen Clarke Estates Ltd,A035538,21/06/2017,1347219,2311.88,Legal & Professional Services
North West Leicestershire District Council,31UH,Housing Repairs,HRA Housing Repairs & Maintenance,HRAHRM,Sure Maintenance Ltd,A040460,21/06/2017,1347226,1280,Plumbing & Heating
North West Leicestershire District Council,31UH,Housing Repairs,HRA Housing Repairs & Maintenance,HRAHRM,Kier Services Maintenance East Ltd,A039980,21/06/2017,1347227,3192.43,Decent Homes
North West Leicestershire District Council,31UH,Housing Repairs,HRA Housing Repairs & Maintenance,HRAHRM,Kier Services Maintenance East Ltd,A039980,21/06/2017,1347228,2434.62,Decent Homes
North West Leicestershire District Council,31UH,Housing Repairs,HRA Housing Repairs & Maintenance,HRAHRM,Laker BMS Ltd,A031787,21/06/2017,1347230,12481.25,Housing Repairs
North West Leicestershire District Council,31UH,Housing Repairs,HRA Housing Repairs & Maintenance,HRAHRM,Laker BMS Ltd,A031787,21/06/2017,1347231,907.4,Housing Repairs
North West Leicestershire District Council,31UH,Housing Repairs,HRA Housing Repairs & Maintenance,HRAHRM,Laker BMS Ltd,A031787,21/06/2017,1347232,3760,Housing Repairs
North West Leicestershire District Council,31UH,Housing Repairs,HRA Housing Repairs & Maintenance,HRAHRM,Laker BMS Ltd,A031787,21/06/2017,1347233,973.5,Housing Repairs
North West Leicestershire District Council,31UH,Housing Repairs,HRA Housing Repairs & Maintenance,HRAHRM,Sure Maintenance Ltd,A040460,21/06/2017,1347243,1155,Plumbing & Heating
North West Leicestershire District Council,31UH,Housing Repairs,HRA Housing Repairs & Maintenance,HRAHRM,Sure Maintenance Ltd,A040460,21/06/2017,1347244,1915,Plumbing & Heating
North West Leicestershire District Council,31UH,Housing Repairs,HRA Housing Repairs & Maintenance,HRAHRM,Sure Maintenance Ltd,A040460,21/06/2017,1347245,480,Plumbing & Heating
North West Leicestershire District Council,31UH,Housing Repairs,HRA Housing Repairs & Maintenance,HRAHRM,Sure Maintenance Ltd,A040460,21/06/2017,1347251,980,Plumbing & Heating
North West Leicestershire District Council,31UH,Housing Repairs,HRA Housing Repairs & Maintenance,HRAHRM,Sure Maintenance Ltd,A040460,21/06/2017,1347260,320.05,Plumbing & Heating
North West Leicestershire District Council,31UH,Planning & Development,Environment - Development Control,EDC,Haymarket Media Group,A035826,21/06/2017,1347263,1469,Subscriptions
North West Leicestershire District Council,31UH,Street Management,Environment - Street Scene,ESS,Trevor Roberts Associates Ltd,A042339,28/06/2017,1347268,952,Training Course
North West Leicestershire District Council,31UH,Leisure Centres,Hood Park Leisure Centre,HPLC,Stowlin Ltd,A001591,21/06/2017,1347273,254.32,Water Treatment
North West Leicestershire District Council,31UH,Leisure Centres,Hermitage Leisure Centre,HLC,T Denman & Sons (Melton Mowbray) Ltd,A030887,21/06/2017,1347278,1371.6,Maintenance/Office Expenditure
North West Leicestershire District Council,31UH,Leisure Centres,Hood Park Leisure Centre,HPLC,T Denman & Sons (Melton Mowbray) Ltd,A030887,21/06/2017,1347279,788.4,General Repairs
North West Leicestershire District Council,31UH,Leisure Centres,Hermitage Leisure Centre,HLC,Sterling Hydrotech Limited,A037677,21/06/2017,1347280,600,Service Contracts
North West Leicestershire District Council,31UH,Leisure Centres,Hood Park Leisure Centre,HPLC,Zoggs International Ltd,A001833,28/06/2017,1347283,523,Equipment For Resale
North West Leicestershire District Council,31UH,Housing Repairs,HRA Housing Repairs & Maintenance,HRAHRM,Lovell Partnerships Ltd,A039973,21/06/2017,1347285,5237.42,Decent Homes
North West Leicestershire District Council,31UH,Housing Repairs,HRA Housing Repairs & Maintenance,HRAHRM,Lovell Partnerships Ltd,A039973,21/06/2017,1347286,1088.22,Decent Homes
North West Leicestershire District Council,31UH,Housing Repairs,HRA Housing Repairs & Maintenance,HRAHRM,Lovell Partnerships Ltd,A039973,21/06/2017,1347287,563.75,Decent Homes
North West Leicestershire District Council,31UH,Housing Repairs,HRA Housing Repairs & Maintenance,HRAHRM,Lovell Partnerships Ltd,A039973,21/06/2017,1347288,563.75,Decent Homes
North West Leicestershire District Council,31UH,Housing Repairs,HRA Housing Repairs & Maintenance,HRAHRM,Lovell Partnerships Ltd,A039973,21/06/2017,1347289,524.47,Decent Homes
North West Leicestershire District Council,31UH,Housing Repairs,HRA Housing Repairs & Maintenance,HRAHRM,Lovell Partnerships Ltd,A039973,21/06/2017,1347290,9307.03,Decent Homes
North West Leicestershire District Council,31UH,Housing Repairs,HRA Housing Repairs & Maintenance,HRAHRM,Lovell Partnerships Ltd,A039973,21/06/2017,1347291,9307.03,Decent Homes
North West Leicestershire District Council,31UH,Housing Repairs,HRA Housing Repairs & Maintenance,HRAHRM,Lovell Partnerships Ltd,A039973,21/06/2017,1347292,2834.74,Decent Homes
North West Leicestershire District Council,31UH,Housing Repairs,HRA Housing Repairs & Maintenance,HRAHRM,Lovell Partnerships Ltd,A039973,21/06/2017,1347293,5237.42,Decent Homes
North West Leicestershire District Council,31UH,Housing Repairs,HRA Housing Repairs & Maintenance,HRAHRM,Lovell Partnerships Ltd,A039973,21/06/2017,1347294,563.75,Decent Homes
North West Leicestershire District Council,31UH,Housing Repairs,HRA Housing Repairs & Maintenance,HRAHRM,Lovell Partnerships Ltd,A039973,21/06/2017,1347295,3244.29,Decent Homes
North West Leicestershire District Council,31UH,Housing Repairs,HRA Housing Repairs & Maintenance,HRAHRM,Lovell Partnerships Ltd,A039973,21/06/2017,1347296,2834.74,Decent Homes
North West Leicestershire District Council,31UH,Street Management,Environment Parks,ENOP,Secure-a-field,A038742,21/06/2017,1347297,721.73,External Materials
North West Leicestershire District Council,31UH,Housing,HRA Housing Management,HRAHM,Greenhill Tenants & Residents Association,A030997,21/06/2017,1347302,600,Grants
North West Leicestershire District Council,31UH,Leisure Centres,Hermitage Leisure Centre,HLC,Draeger,A028498,21/06/2017,1347303,615,Service Contracts
North West Leicestershire District Council,31UH,Leisure & Culture,Sport & Physical Activity,SPA,"Knight, Kavanagh & Page",A043152,21/06/2017,1347304,2060,Consultants Fees
North West Leicestershire District Council,31UH,Finance,Exchequer Services,EXCH,Comensura Limited,A036958,21/06/2017,1347305,31479.59,Agency Staff
North West Leicestershire District Council,31UH,Housing,HRA Housing Management,HRAHM,Quivira (Coalville)  Ltd,A044109,21/06/2017,1347309,25000,Business Support Grant
North West Leicestershire District Council,31UH,Information Technology,ICT Services,ICT,British Telecommunications Plc,A000233,21/06/2017,1347310,1397.5,Admin Equipment - Hire/Rental
North West Leicestershire District Council,31UH,Information Technology,ICT Services,ICT,Canon UK Ltd,A040459,21/06/2017,1347312,5532.91,Equipment Operating Leases
North West Leicestershire District Council,31UH,Leisure Centres,Hood Park Leisure Centre,HPLC,Virgin Media Business,A035373,21/06/2017,1347314,711.49,Telephone Charge / Rental
North West Leicestershire District Council,31UH,Leisure Centres,Hermitage Leisure Centre,HLC,Water Plus Limited,A044043,21/06/2017,1347315,1384.74,Water Charges (Metered)
North West Leicestershire District Council,31UH,Legal & Democratic,Legal Services,LDLS,Venn Group Limited,A028530,21/06/2017,1347316,922.5,Agency Staff
North West Leicestershire District Council,31UH,Leisure Centres,Hood Park Bar and Catering,HPBC,Snackline Direct Ltd,A042489,21/06/2017,1347317,573.33,Vending Machine Provisions
North West Leicestershire District Council,31UH,Street Management,Environment Transport,ENOT,Ford & Slater Group Ltd,A000625,21/06/2017,1347321,762.5,Vehicle related Costs
North West Leicestershire District Council,31UH,Leisure Centres,Hood Park Leisure Centre,HPLC,Dura-Sport (Leisure Care) Ltd,A016357,28/06/2017,1347322,280,General Repairs
North West Leicestershire District Council,31UH,Leisure Centres,Hood Park Leisure Centre,HPLC,Dura-Sport (Leisure Care) Ltd,A016357,28/06/2017,1347324,350,General Repairs
North West Leicestershire District Council,31UH,Street Management,Environment Transport,ENOT,TECSERV UK LIMITED,A028261,21/06/2017,1347334,572.22,Security Services
North West Leicestershire District Council,31UH,Leisure Centres,Hood Park Leisure Centre,HPLC,J P Lennard Ltd,A000969,21/06/2017,1347335,295.05,Operational Equipment
North West Leicestershire District Council,31UH,Property Services,Property Facilities Management,PROPFM,Fire Proof Ltd,A039911,21/06/2017,1347339,482.3,General Repairs
North West Leicestershire District Council,31UH,Housing,HRA Housing Management,HRAHM,Raymond Pell,A044111,21/06/2017,1347341,280,Grants
North West Leicestershire District Council,31UH,Street Management,Environment Transport,ENOT,Vectec Limited,A044103,21/06/2017,1347343,399.08,Operational Equipment - Rep & Maint
North West Leicestershire District Council,31UH,Leisure Centres,Hermitage Leisure Centre,HLC,Matt Ward,A036694,21/06/2017,1347346,400,Hospitality
North West Leicestershire District Council,31UH,Information Technology,ICT Services,ICT,Orange Plc,A018592,21/06/2017,1347426,1077.6,Mobile Telephones
North West Leicestershire District Council,31UH,Information Technology,ICT Services,ICT,Orange Plc,A018592,21/06/2017,1347427,2168.52,Mobile Telephones
North West Leicestershire District Council,31UH,Finance,Housing Benefits,BENS,Hinckley & Bosworth Borough Council,A000770,28/06/2017,1347428,5600,Shared Software Contribution
North West Leicestershire District Council,31UH,Finance,Financial Planning,FINPLA,Euro RSCG People T/A Havas People Ltd,A001395,21/06/2017,1347429,337.81,Advertising
North West Leicestershire District Council,31UH,Finance,Exchequer Services,EXCH,Euro RSCG People T/A Havas People Ltd,A001395,28/06/2017,1347430,524,Advertising
North West Leicestershire District Council,31UH,Leisure & Culture,Cultural Services TIC,CULTIC,Ashby Dramatic Society Trust,A027431,21/06/2017,1347434,270,Theatre Tickets
North West Leicestershire District Council,31UH,Environmental Health,Environmental Health & Licensing,EEHL,City of Wolverhampton Council,A044050,21/06/2017,1347438,260,Training Expenses
North West Leicestershire District Council,31UH,Planning & Development,Environment Community Planning,ECP,Cbec Eco-Engineering UK Ltd,A042193,21/06/2017,1347439,3223.48,Legal & Professional Services
North West Leicestershire District Council,31UH,Planning & Development,Environment-Plan Policy & Sustainability,EPPS,Stansgate Planning Consultants,A013765,21/06/2017,1347440,11671.22,External Legal Fees & Advice
North West Leicestershire District Council,31UH,Planning & Development,Environment Community Planning,ECP,Ash Tree Farm,A044115,21/06/2017,1347450,25000,Business Support Grant
North West Leicestershire District Council,31UH,Housing,HRA Housing Management,HRAHM,Redacted- Personal data,A044117,21/06/2017,1347455,500,Under Occupancy Incentives
North West Leicestershire District Council,31UH,Housing,HRA Housing Management,HRAHM,Redacted- Personal data,A044118,21/06/2017,1347456,280,Grants
North West Leicestershire District Council,31UH,Economic Development,Business Focus Group,BFG,Julia Burkin,A043213,21/06/2017,1347461,835.6,Consultants Fees
North West Leicestershire District Council,31UH,Housing Repairs,HRA Housing Repairs & Maintenance,HRAHRM,H20 Utilities Ltd,A043865,21/06/2017,1347463,1350,Associated Drainage Services
North West Leicestershire District Council,31UH,Housing Repairs,HRA Housing Repairs & Maintenance,HRAHRM,H20 Utilities Ltd,A043865,21/06/2017,1347464,750,Associated Drainage Services
North West Leicestershire District Council,31UH,Housing Repairs,HRA Housing Repairs & Maintenance,HRAHRM,H20 Utilities Ltd,A043865,21/06/2017,1347465,260,Associated Drainage Services
North West Leicestershire District Council,31UH,Housing,HRA Housing Management,HRAHM,Duncan Mortimer,A044120,21/06/2017,1347469,280,Grants
North West Leicestershire District Council,31UH,Communications,Corporate - Communications,CP,Neopost Credifon,A022988,21/06/2017,1347474,5550,Postages
North West Leicestershire District Council,31UH,Housing,HRA Performance & Business Support,HRAPBS,Linford & Verdon Tenants and,A011717,21/06/2017,1347480,600,Grants
North West Leicestershire District Council,31UH,Property Services,Property Commercial Lettings,PROPCL,Coalville Cleaning Services,A003037,21/06/2017,1347481,250.4,Consumable Materials
North West Leicestershire District Council,31UH,Street Management,Environment Transport,ENOT,Innovative Safety Systems Limited,A038664,28/06/2017,1347482,-720,Service Improvements
North West Leicestershire District Council,31UH,Finance,Exchequer Services,EXCH,Lloyds Bank Plc,A042250,21/06/2017,1347484,588.4,Legal & Professional Services
North West Leicestershire District Council,31UH,Finance,Exchequer Services,EXCH,ESPO,A000958,21/06/2017,1347485,5819.04,Gas
North West Leicestershire District Council,31UH,Corporate Director,Human Resources,HR,The Disclosure & Barring Service,A027625,21/06/2017,1347486,922,Criminal Records Bureau Checks
North West Leicestershire District Council,31UH,Legal & Democratic,Legal Services,LDLS,HMCTS,A033956,21/06/2017,1347487,308,Insolvency Administration
North West Leicestershire District Council,31UH,Legal & Democratic,Legal Services,LDLS,HMCTS,A033956,21/06/2017,1347489,2313,Legal & Professional Services
North West Leicestershire District Council,31UH,Finance,Financial Planning,FINPLA,LOROS,A037920,21/06/2017,1347490,1808.33,Chairmans Charity Donation
North West Leicestershire District Council,31UH,Finance,Financial Planning,FINPLA,The Air Ambulance Service,A040022,21/06/2017,1347491,1808.34,Chairmans Charity Donation
North West Leicestershire District Council,31UH,Finance,Financial Planning,FINPLA,Fife Council,A042928,21/06/2017,1347493,1500000,Policy Lending
North West Leicestershire District Council,31UH,Leisure Centres,Hood Park Leisure Centre,HPLC,Pitney Bowes Limited,A028146,21/06/2017,1347495,257.66,Postages
North West Leicestershire District Council,31UH,Housing Strategy,Community - Housing Strategy,HS,Redacted- Personal data,A035774,21/06/2017,1347497,550,Rent Deposit Scheme
North West Leicestershire District Council,31UH,Property Services,Property Facilities Management,PROPFM,TECSERV UK LIMITED,A028261,28/06/2017,1347500,600,Fire Precaution Appliances
North West Leicestershire District Council,31UH,Property Services,Property Commercial Lettings,PROPCL,Coalville Cleaning Services,A003037,28/06/2017,1347502,558.06,Contract Cleaning
North West Leicestershire District Council,31UH,Property Services,Property Commercial Lettings,PROPCL,Coalville Cleaning Services,A003037,28/06/2017,1347503,289.95,Contract Cleaning
North West Leicestershire District Council,31UH,Chief Exec,Chief Executive,CHEX,Ecus Ltd,A044014,28/06/2017,1347510,16464.05,Legal & Professional Services
North West Leicestershire District Council,31UH,Information Technology,ICT Services,ICT,Premier Paper Group,A042438,28/06/2017,1347512,502.8,Consumable Materials
North West Leicestershire District Council,31UH,Housing,HRA Performance & Business Support,HRAPBS,Michael Page International Recruitment Ltd,A041893,28/06/2017,1347517,2017.75,Agency Staff
North West Leicestershire District Council,31UH,Planning & Development,Environment Community Planning,ECP,Fluidata,A036404,28/06/2017,1347532,5004,Telephones
North West Leicestershire District Council,31UH,Information Technology,ICT Services,ICT,Phoenix Software Limited,A001298,28/06/2017,1347533,83901.45,Corporate IT Licences
North West Leicestershire District Council,31UH,Street Management,Environment Parks,ENOP,Baginton Nurseries Ltd,A039715,28/06/2017,1347534,6374.66,External Materials
North West Leicestershire District Council,31UH,Street Management,Environment Waste Management,ENOWM,Water Plus Limited,A044043,28/06/2017,1347535,4064.29,Water Charges (Metered)
North West Leicestershire District Council,31UH,Legal & Democratic,Civic Expenses,LDCE,Local Government Information House,A026064,28/06/2017,1347545,545,Training Expenses
North West Leicestershire District Council,31UH,Street Management,Environment Transport,ENOT,Westbury Industrial Supplies Limited,A009933,28/06/2017,1347548,529.86,Protective Clothing
North West Leicestershire District Council,31UH,Housing Repairs,HRA Housing Repairs & Maintenance,HRAHRM,Sure Maintenance Ltd,A040460,28/06/2017,1347550,2058.1,Plumbing & Heating
North West Leicestershire District Council,31UH,Street Management,Environment Transport,ENOT,Trade Price Windscreens Ltd,A040486,28/06/2017,1347553,320,Non Scheduled Maintenance - Parts
North West Leicestershire District Council,31UH,Finance,Exchequer Services,EXCH,Comensura Limited,A036958,28/06/2017,1347559,34997.5,Agency Staff
North West Leicestershire District Council,31UH,Finance,Financial Planning,FINPLA,Blaby District Council,A000180,28/06/2017,1347562,22438.58,Provision of DFG
North West Leicestershire District Council,31UH,Housing Repairs,HRA Housing Repairs & Maintenance,HRAHRM,S V Surveying,A043768,28/06/2017,1347564,365,Legal & Professional Services
North West Leicestershire District Council,31UH,Housing Repairs,HRA Housing Repairs & Maintenance,HRAHRM,Emperor Scaffolding Limited,A038405,28/06/2017,1347565,400,Hire Of Operational Equipment
North West Leicestershire District Council,31UH,Housing Repairs,HRA Housing Repairs & Maintenance,HRAHRM,Emperor Scaffolding Limited,A038405,28/06/2017,1347566,550,Hire Of Operational Equipment
North West Leicestershire District Council,31UH,Housing Repairs,HRA Housing Repairs & Maintenance,HRAHRM,Emperor Scaffolding Limited,A038405,28/06/2017,1347568,350,Hire Of Operational Equipment
North West Leicestershire District Council,31UH,Housing Repairs,HRA Housing Repairs & Maintenance,HRAHRM,Emperor Scaffolding Limited,A038405,28/06/2017,1347570,350,Hire Of Operational Equipment
North West Leicestershire District Council,31UH,Property Services,Property Facilities Management,PROPFM,Admiral Cleaning Supplies Ltd,A040930,28/06/2017,1347573,456.02,Cleaning & Domestic Equipment
North West Leicestershire District Council,31UH,Leisure Centres,Hood Park Leisure Centre,HPLC,Dura-Sport (Leisure Care) Ltd,A041815,28/06/2017,1347574,280,General Repairs
North West Leicestershire District Council,31UH,Street Management,Environment Transport,ENOT,Ford & Slater Group Ltd,A000625,28/06/2017,1347577,406.9,Vehicle related Costs
North West Leicestershire District Council,31UH,Street Management,Environment Transport,ENOT,County Drains Leicester Ltd,A024295,28/06/2017,1347578,340,General Repairs
North West Leicestershire District Council,31UH,Street Management,Environment Transport,ENOT,Post Office Limited,A002270,28/06/2017,1347579,1945,Road Fund Licence
North West Leicestershire District Council,31UH,Environmental Health,Environmental Health & Licensing,EEHL,College Garth Boarding Kennels,A000385,28/06/2017,1347580,2154.68,Stray Dog Service
North West Leicestershire District Council,31UH,Property Services,Property Commercial Lettings,PROPCL,Purchase Power,A008204,28/06/2017,1347586,684.6,Equipment Operating Leases
North West Leicestershire District Council,31UH,Property Services,Property Commercial Lettings,PROPCL,Purchase Power,A008204,28/06/2017,1347587,629.6,Operational Equipment
North West Leicestershire District Council,31UH,Leisure & Culture,Sport & Physical Activity,SPA,BHR Pharmaceuticals Limited,A036681,28/06/2017,1347589,337.11,Medical Test
North West Leicestershire District Council,31UH,Street Management,Environment Transport,ENOT,Mitchell Diesel Ltd t/a Mitchell Power Systems,A001128,28/06/2017,1347591,588,Fuel
North West Leicestershire District Council,31UH,Leisure Centres,Hermitage Leisure Centre,HLC,Kingsfield Computer Products Ltd,A039732,28/06/2017,1347592,461.34,Operational Equipment
North West Leicestershire District Council,31UH,Planning & Development,Environment Community Planning,ECP,Cyclone Works Ltd,A044105,28/06/2017,1347597,995,Event Expenditure
North West Leicestershire District Council,31UH,Leisure Centres,Hood Park Leisure Centre,HPLC,J P Lennard Ltd,A000969,28/06/2017,1347606,589.8,Operational Equipment
North West Leicestershire District Council,31UH,Leisure Centres,Hood Park Bar and Catering,HPBC,Britvic Soft Drinks Limited,A000234,28/06/2017,1347608,330.99,Bar Provisions
North West Leicestershire District Council,31UH,Leisure Centres,Hood Park Leisure Centre,HPLC,Admiral Cleaning Supplies Ltd,A040930,28/06/2017,1347610,476.14,Consumable Materials
North West Leicestershire District Council,31UH,Housing,HRA Performance & Business Support,HRAPBS,Badenoch & Clark,A030251,28/06/2017,1347611,1013.07,Agency Staff
North West Leicestershire District Council,31UH,Planning & Development,Environment Planning Policy,EPP,Infrastructure & Environment UK Ltd,A041786,28/06/2017,1347618,1650,Legal & Professional Services
North West Leicestershire District Council,31UH,Street Management,Environment Transport,ENOT,Westbury Industrial Supplies Limited,A009933,28/06/2017,1347619,359.11,Protective Clothing
North West Leicestershire District Council,31UH,Street Management,Environment Transport,ENOT,Euro Municipal Ltd,A043137,28/06/2017,1347620,950,Hire Of Transport
North West Leicestershire District Council,31UH,Housing,HRA Housing Management,HRAHM,Coalville Signs,A000370,28/06/2017,1347621,290,General Repairs
North West Leicestershire District Council,31UH,Street Management,Environment Transport,ENOT,Ford & Slater Group Ltd,A000625,28/06/2017,1347624,250.8,Vehicle related Costs
North West Leicestershire District Council,31UH,Housing Repairs,HRA Housing Repairs & Maintenance,HRAHRM,Design Studio Architects Ltd,A043548,28/06/2017,1347631,4000,Legal & Professional Services
North West Leicestershire District Council,31UH,Leisure & Culture,Cultural Services TIC,CULTIC,Leicestershire County Council,A000950,28/06/2017,1347632,675,Room Hire
North West Leicestershire District Council,31UH,Street Management,Environment Waste Management,ENOWM,Hinckley & Bosworth Borough Council,A000770,28/06/2017,1347634,320.5,External Contractor Payments
North West Leicestershire District Council,31UH,Environmental Health,Environmental Services,EES,GHM Planning Limited,A034296,28/06/2017,1347638,2081,Agency Staff
North West Leicestershire District Council,31UH,Finance,Financial Planning,FINPLA,Arlingclose Ltd,A035603,28/06/2017,1347641,2890,Legal & Professional Services
North West Leicestershire District Council,31UH,Housing Strategy,Community - Housing Strategy,HS,SJN Property Services,A039294,28/06/2017,1347642,550,Rent Deposit Scheme
North West Leicestershire District Council,31UH,Environmental Health,Environmental Services,EES,Water Plus Limited,A044043,28/06/2017,1347646,415,Water Charges (Metered)
North West Leicestershire District Council,31UH,Information Technology,ICT Services,ICT,Virgin Media Business,A008908,28/06/2017,1347647,403.72,Admin Equipment - Maintenance
North West Leicestershire District Council,31UH,Housing,HRA Housing Management,HRAHM,Water Plus Limited,A044043,28/06/2017,1347648,396.44,Water Charges (Metered)
North West Leicestershire District Council,31UH,Housing Repairs,HRA Housing Repairs & Maintenance,HRAHRM,Sure Maintenance Ltd,A040460,28/06/2017,1347655,10607.04,Plumbing & Heating
North West Leicestershire District Council,31UH,Housing Repairs,HRA Housing Repairs & Maintenance,HRAHRM,Sure Maintenance Ltd,A040460,28/06/2017,1347657,5880,Plumbing & Heating
North West Leicestershire District Council,31UH,Housing Repairs,HRA Housing Repairs & Maintenance,HRAHRM,County Safety Services Ltd  t/a CSS Worksafe,A044007,28/06/2017,1347723,452.94,Operational Equipment
North West Leicestershire District Council,31UH,Housing Repairs,HRA Housing Repairs & Maintenance,HRAHRM,Kier Services Maintenance East Ltd,A039980,28/06/2017,1347736,4062.52,Decent Homes
North West Leicestershire District Council,31UH,Housing Repairs,HRA Housing Repairs & Maintenance,HRAHRM,Kier Services Maintenance East Ltd,A039980,28/06/2017,1347737,2212.85,Decent Homes
North West Leicestershire District Council,31UH,Housing Repairs,HRA Housing Repairs & Maintenance,HRAHRM,Kier Services Maintenance East Ltd,A039980,28/06/2017,1347738,3381.92,Decent Homes
North West Leicestershire District Council,31UH,Housing Repairs,HRA Housing Repairs & Maintenance,HRAHRM,Kier Services Maintenance East Ltd,A039980,28/06/2017,1347739,487.73,Decent Homes
North West Leicestershire District Council,31UH,Housing Repairs,HRA Housing Repairs & Maintenance,HRAHRM,Kier Services Maintenance East Ltd,A039980,28/06/2017,1347740,3797.82,Decent Homes
North West Leicestershire District Council,31UH,Housing Repairs,HRA Housing Repairs & Maintenance,HRAHRM,Kier Services Maintenance East Ltd,A039980,28/06/2017,1347741,4469.08,Decent Homes
North West Leicestershire District Council,31UH,Housing Repairs,HRA Housing Repairs & Maintenance,HRAHRM,Kier Services Maintenance East Ltd,A039980,28/06/2017,1347742,469.22,Decent Homes
North West Leicestershire District Council,31UH,Housing Repairs,HRA Housing Repairs & Maintenance,HRAHRM,Kier Services Maintenance East Ltd,A039980,28/06/2017,1347743,911.2,Decent Homes
North West Leicestershire District Council,31UH,Housing Repairs,HRA Housing Repairs & Maintenance,HRAHRM,Kier Services Maintenance East Ltd,A039980,28/06/2017,1347744,420.19,Decent Homes
North West Leicestershire District Council,31UH,Housing Repairs,HRA Housing Repairs & Maintenance,HRAHRM,Kier Services Maintenance East Ltd,A039980,28/06/2017,1347745,487.73,Decent Homes
North West Leicestershire District Council,31UH,Housing Repairs,HRA Housing Repairs & Maintenance,HRAHRM,Kier Services Maintenance East Ltd,A039980,28/06/2017,1347746,390.04,Decent Homes
North West Leicestershire District Council,31UH,Housing Repairs,HRA Housing Repairs & Maintenance,HRAHRM,Kier Services Maintenance East Ltd,A039980,28/06/2017,1347747,3447.96,Decent Homes
North West Leicestershire District Council,31UH,Housing Repairs,HRA Housing Repairs & Maintenance,HRAHRM,Kier Services Maintenance East Ltd,A039980,28/06/2017,1347748,485.56,Decent Homes
North West Leicestershire District Council,31UH,Housing Repairs,HRA Housing Repairs & Maintenance,HRAHRM,Kier Services Maintenance East Ltd,A039980,28/06/2017,1347749,3797.82,Decent Homes
North West Leicestershire District Council,31UH,Housing Repairs,HRA Housing Repairs & Maintenance,HRAHRM,Kier Services Maintenance East Ltd,A039980,28/06/2017,1347750,474.66,Decent Homes
North West Leicestershire District Council,31UH,Housing Repairs,HRA Housing Repairs & Maintenance,HRAHRM,Kier Services Maintenance East Ltd,A039980,28/06/2017,1347751,15671.48,Decent Homes
North West Leicestershire District Council,31UH,Housing Repairs,HRA Housing Repairs & Maintenance,HRAHRM,Kier Services Maintenance East Ltd,A039980,28/06/2017,1347752,3014.13,Decent Homes
North West Leicestershire District Council,31UH,Housing Repairs,HRA Housing Repairs & Maintenance,HRAHRM,Kier Services Maintenance East Ltd,A039980,28/06/2017,1347753,485.56,Decent Homes
North West Leicestershire District Council,31UH,Housing Repairs,HRA Housing Repairs & Maintenance,HRAHRM,Kier Services Maintenance East Ltd,A039980,28/06/2017,1347754,927.54,Decent Homes
North West Leicestershire District Council,31UH,Housing Repairs,HRA Housing Repairs & Maintenance,HRAHRM,Kier Services Maintenance East Ltd,A039980,28/06/2017,1347755,487.73,Decent Homes
North West Leicestershire District Council,31UH,Housing Repairs,HRA Housing Repairs & Maintenance,HRAHRM,Kier Services Maintenance East Ltd,A039980,28/06/2017,1347756,487.73,Decent Homes
North West Leicestershire District Council,31UH,Housing Repairs,HRA Housing Repairs & Maintenance,HRAHRM,Kier Services Maintenance East Ltd,A039980,28/06/2017,1347757,2892.43,Decent Homes
North West Leicestershire District Council,31UH,Housing Repairs,HRA Housing Repairs & Maintenance,HRAHRM,Kier Services Maintenance East Ltd,A039980,28/06/2017,1347758,760.05,Decent Homes
North West Leicestershire District Council,31UH,Housing Repairs,HRA Housing Repairs & Maintenance,HRAHRM,Kier Services Maintenance East Ltd,A039980,28/06/2017,1347759,903.75,Decent Homes
North West Leicestershire District Council,31UH,Housing Repairs,HRA Housing Repairs & Maintenance,HRAHRM,Kier Services Maintenance East Ltd,A039980,28/06/2017,1347760,469.22,Decent Homes
North West Leicestershire District Council,31UH,Housing Repairs,HRA Housing Repairs & Maintenance,HRAHRM,Kier Services Maintenance East Ltd,A039980,28/06/2017,1347761,315.91,Decent Homes
North West Leicestershire District Council,31UH,Housing Repairs,HRA Housing Repairs & Maintenance,HRAHRM,Kier Services Maintenance East Ltd,A039980,28/06/2017,1347762,441.98,Decent Homes
North West Leicestershire District Council,31UH,Housing Repairs,HRA Housing Repairs & Maintenance,HRAHRM,Kier Services Maintenance East Ltd,A039980,28/06/2017,1347763,431.09,Decent Homes
North West Leicestershire District Council,31UH,Housing Repairs,HRA Housing Repairs & Maintenance,HRAHRM,Orbis Property Protection Ltd,A028149,28/06/2017,1347764,285,Void Property Clearance Services
North West Leicestershire District Council,31UH,Housing Repairs,HRA Housing Repairs & Maintenance,HRAHRM,Orbis Property Protection Ltd,A028149,28/06/2017,1347778,325,Void Property Clearance Services
North West Leicestershire District Council,31UH,Housing Repairs,HRA Housing Repairs & Maintenance,HRAHRM,Leicestershire County Council,A000950,28/06/2017,1347779,1500,Contract Payments (Dws) Ext
North West Leicestershire District Council,31UH,Housing Repairs,HRA Housing Repairs & Maintenance,HRAHRM,H20 Utilities Ltd,A043865,28/06/2017,1347804,1705,Associated Drainage Services
North West Leicestershire District Council,31UH,Housing,HRA Housing Management,HRAHM,Water Plus Limited,A044043,28/06/2017,1347812,795.96,Water Charges (Metered)
North West Leicestershire District Council,31UH,Legal & Democratic,Legal Services,LDLS,Venn Group Limited,A028530,28/06/2017,1347813,1087.65,Agency Staff
North West Leicestershire District Council,31UH,Housing,HRA Performance & Business Support,HRAPBS,Badenoch & Clark,A030251,28/06/2017,1347816,1013.07,Agency Staff
North West Leicestershire District Council,31UH,Legal & Democratic,Legal Services,LDLS,Venn Group Limited,A028530,28/06/2017,1347817,1057.5,Agency Staff
North West Leicestershire District Council,31UH,Planning & Development,Environment Planning Policy,EPP,Wrenbury Properties Ltd,A044133,28/06/2017,1347818,7786.8,External Legal Fees & Advice
North West Leicestershire District Council,31UH,Property Services,Property Commercial Lettings,PROPCL,John Merison BMC Ltd,A001092,28/06/2017,1347821,535.77,General Repairs
North West Leicestershire District Council,31UH,Property Services,Property Commercial Lettings,PROPCL,John Merison BMC Ltd,A001092,28/06/2017,1347822,344.18,General Repairs
North West Leicestershire District Council,31UH,Street Management,Environment Transport,ENOT,Euro Municipal Ltd,A043137,28/06/2017,1347825,950,Hire Of Transport
North West Leicestershire District Council,31UH,Leisure Centres,Hood Park Leisure Centre,HPLC,Quest & NBS,A038334,28/06/2017,1347828,950,Leisure Centre Licences
North West Leicestershire District Council,31UH,Street Management,Environment Transport,ENOT,Sherwood Commercial Vehicles Ltd,A003949,28/06/2017,1347834,45420,Items To Be Leased
North West Leicestershire District Council,31UH,Housing,HRA Housing Management,HRAHM,Sturgis Snow & Astill LLP,A032635,28/06/2017,1347837,375,Legal & Professional Services
North West Leicestershire District Council,31UH,Finance,Exchequer Services,EXCH,Digicert,A042250,28/06/2017,1347838,1563.88,Software licences
North West Leicestershire District Council,31UH,Housing Repairs,HRA Housing Repairs & Maintenance,HRAHRM,Collective Enterprises Ltd,A036453,28/06/2017,1347839,38635.01,General Materials
North West Leicestershire District Council,31UH,Finance,Financial Planning,FINPLA,Blackrock Cash Management,A039249,28/06/2017,1347842,1600000,Policy Lending
North West Leicestershire District Council,31UH,Finance,Financial Planning,FINPLA,Scottish Widows Investment Partnerhiip,A039247,28/06/2017,1347843,3800000,Policy Lending
North West Leicestershire District Council,31UH,Finance,Financial Planning,FINPLA,Goldman Sachs Money Market Fund,A039248,28/06/2017,1347844,3000000,Policy Lending
North West Leicestershire District Council,31UH,Leisure Centres,Hood Park Leisure Centre,HPLC,ESPO,A000958,28/06/2017,1347847,752.06,Gas
North West Leicestershire District Council,31UH,Property Services,Property Facilities Management,PROPFM,Water Plus Limited,A044043,28/06/2017,1347848,4882.31,Water Charges (Metered)
North West Leicestershire District Council,31UH,Property Services,Property Commercial Lettings,PROPCL,Water Plus Limited,A044043,28/06/2017,1347849,731.05,Water Charges (Metered)
North West Leicestershire District Council,31UH,Property Services,Property Commercial Lettings,PROPCL,Water Plus Limited,A044043,28/06/2017,1347850,342.31,Water Charges (Metered)
North West Leicestershire District Council,31UH,Street Management,Environment Waste Management,ENOWM,Leicestershire County Council,A000950,28/06/2017,1347851,59470.54,Trade Refuse Disposal Costs
North West Leicestershire District Council,31UH,Finance,Exchequer Services,EXCH,H M Land Registry,A000713,28/06/2017,1347860,281,Land Registry Search Fees
North West Leicestershire District Council,31UH,Housing Repairs,HRA Housing Repairs & Maintenance,HRAHRM,Timber-Link Fencing Ltd,A033297,05/07/2017,1347947,732,External Materials
North West Leicestershire District Council,31UH,Housing Repairs,HRA Housing Repairs & Maintenance,HRAHRM,Timber-Link Fencing Ltd,A033297,05/07/2017,1347949,310,External Materials
North West Leicestershire District Council,31UH,Housing Repairs,HRA Housing Repairs & Maintenance,HRAHRM,Timber-Link Fencing Ltd,A033297,05/07/2017,1347950,1368,External Materials
North West Leicestershire District Council,31UH,Housing Repairs,HRA Housing Repairs & Maintenance,HRAHRM,Timber-Link Fencing Ltd,A033297,05/07/2017,1347953,600,External Materials
North West Leicestershire District Council,31UH,Housing Repairs,HRA Housing Repairs & Maintenance,HRAHRM,Timber-Link Fencing Ltd,A033297,05/07/2017,1347955,270,External Materials
North West Leicestershire District Council,31UH,Housing Repairs,HRA Housing Repairs & Maintenance,HRAHRM,Timber-Link Fencing Ltd,A033297,05/07/2017,1347956,900,External Materials
North West Leicestershire District Council,31UH,Housing Repairs,HRA Housing Repairs & Maintenance,HRAHRM,Timber-Link Fencing Ltd,A033297,05/07/2017,1347957,550,External Materials
North West Leicestershire District Council,31UH,Housing Repairs,HRA Housing Repairs & Maintenance,HRAHRM,Timber-Link Fencing Ltd,A033297,05/07/2017,1347958,505,External Materials
North West Leicestershire District Council,31UH,Housing Repairs,HRA Housing Repairs & Maintenance,HRAHRM,Timber-Link Fencing Ltd,A033297,05/07/2017,1347959,680,External Materials
North West Leicestershire District Council,31UH,Housing Repairs,HRA Housing Repairs & Maintenance,HRAHRM,Timber-Link Fencing Ltd,A033297,05/07/2017,1347960,700,External Materials
North West Leicestershire District Council,31UH,Housing Repairs,HRA Housing Repairs & Maintenance,HRAHRM,Timber-Link Fencing Ltd,A033297,05/07/2017,1348212,350,External Materials
North West Leicestershire District Council,31UH,Housing Repairs,HRA Housing Repairs & Maintenance,HRAHRM,Timber-Link Fencing Ltd,A033297,05/07/2017,1348213,550,External Materials
North West Leicestershire District Council,31UH,Housing Repairs,HRA Housing Repairs & Maintenance,HRAHRM,Timber-Link Fencing Ltd,A033297,05/07/2017,1348214,370,External Materials
North West Leicestershire District Council,31UH,Housing Repairs,HRA Housing Repairs & Maintenance,HRAHRM,Timber-Link Fencing Ltd,A033297,05/07/2017,1348215,1372,External Materials
